bitfinex-derivatives/quotes_BTCF0:USTF0_20250119
["timestamp","ask_amount","ask_price","bid_price","bid_amount"]
[1737268323799,0.3608,105350.0,105340.0,0.12852365]
[1737268324104,0.4167843,105350.0,105340.0,0.12852365]
[1737268324295,0.4167883,105350.0,105340.0,0.12852365]
[1737268324704,0.46658895,105350.0,105340.0,0.12852365]
[1737268325298,0.4167883,105350.0,105340.0,0.12852365]
[1737268326695,0.3692623,105350.0,105340.0,0.12852365]
[1737268329004,0.4167823,105350.0,105340.0,0.12852365]
[1737268329204,0.3692623,105350.0,105340.0,0.12852365]
[1737268329899,0.3608,105350.0,105340.0,0.12852365]
[1737268330207,0.4233,105360.0,105350.0,0.047523]
[1737268330394,0.43196687,105360.0,105350.0,0.09732365]
[1737268330601,0.36946687,105360.0,105350.0,0.09732365]
[1737268331507,0.36946687,105360.0,105350.0,0.03732365]
[1737268331704,0.41698287,105360.0,105350.0,0.08484665]
[1737268335810,0.41698287,105360.0,105350.0,0.09331774]
[1737268337205,0.408316,105360.0,105350.0,0.09331774]
[1737268337800,0.3608,105360.0,105350.0,0.09331774]
[1737268346107,0.3608,105360.0,105350.0,0.12371774]
[1737268346305,0.3608,105360.0,105350.0,0.15371774]
[1737268346508,0.5030462,105360.0,105350.0,0.15371774]
[1737268347709,0.5030462,105360.0,105350.0,0.32225749]
[1737268348805,0.1422462,105360.0,105350.0,0.32225749]
[1737268349006,0.5030462,105360.0,105350.0,0.32225749]
[1737268350815,0.67405561,105360.0,105350.0,0.32225749]
[1737268351615,0.53180941,105360.0,105350.0,0.15371774]
[1737268352513,0.62912706,105360.0,105350.0,0.09331774]
[1737268352714,0.62912706,105360.0,105350.0,0.047523]
[1737268353025,0.69132706,105360.0,105350.0,0.047523]
[1737268353321,0.69132706,105360.0,105350.0,0.09732365]
[1737268353709,0.74112771,105360.0,105340.0,0.44264917]
[1737268353914,0.45812165,105350.0,105340.0,0.39512417]
[1737268354108,0.45812165,105350.0,105340.0,0.16853975]
[1737268354515,0.45812165,105350.0,105340.0,0.02073975]
[1737268354916,0.047526,105340.0,105330.0,0.09733165]
[1737268355112,0.45812665,105340.0,105330.0,0.09733165]
[1737268355313,0.408326,105340.0,105330.0,0.09733165]
[1737268355514,0.408326,105340.0,105330.0,0.16023165]
[1737268359516,0.57934249,105340.0,105330.0,0.16023165]
[1737268360419,0.53181649,105340.0,105330.0,0.16023165]
[1737268360717,0.50318227,105340.0,105330.0,0.16023165]
[1737268360918,0.047531,105330.0,105320.0,0.31298827]
[1737268361106,0.45813165,105330.0,105320.0,0.36278892]
[1737268361304,0.408331,105330.0,105320.0,0.36278892]
[1737268361508,0.3608,105330.0,105320.0,0.36278892]
[1737268362209,0.3608,105330.0,105320.0,0.13718446]
[1737268362815,0.45813065,105330.0,105320.0,0.13718446]
[1737268363015,0.40833,105330.0,105320.0,0.13718446]
[1737268363416,0.40833,105330.0,105320.0,0.08738381]
[1737268363722,0.047534,105320.0,105310.0,0.29122874]
[1737268364022,0.47575669,105320.0,105310.0,0.28980446]
[1737268364216,0.47575669,105320.0,105310.0,0.25660446]
[1737268364722,0.47575669,105320.0,105300.0,0.70035427]
[1737268364723,0.47575669,105320.0,105300.0,0.30554646]
[1737268364922,0.3608,105310.0,105300.0,0.33724646]
[1737268365915,0.3608,105310.0,105300.0,0.111642]
[1737268366116,0.408339,105310.0,105300.0,0.111642]
[1737268368227,0.47576169,105310.0,105300.0,0.111642]
[1737268368619,0.47576169,105310.0,105300.0,0.0641]
[1737268369721,0.47576169,105310.0,105300.0,0.111643]
[1737268370713,0.41692137,105310.0,105300.0,0.111643]
[1737268382527,0.05612137,105310.0,105300.0,0.111643]
[1737268382728,0.77772137,105310.0,105300.0,0.111643]
[1737268383239,0.7216,105310.0,105300.0,0.111643]
[1737268383432,0.7216,105310.0,105300.0,0.16143652]
[1737268383734,0.047544,105300.0,105290.0,0.047545]
[1737268383927,0.45813752,105300.0,105290.0,0.047545]
[1737268385135,0.408344,105300.0,105290.0,0.09733852]
[1737268391537,0.55297579,105310.0,105290.0,0.14713204]
[1737268391538,0.18992127,105310.0,105290.0,0.14713204]
[1737268391744,0.54070529,105320.0,105310.0,0.047539]
[1737268391934,0.58161001,105320.0,105310.0,0.047539]
[1737268392236,0.58161001,105320.0,105300.0,0.16023452]
[1737268392442,0.62914601,105320.0,105310.0,0.047539]
[1737268392636,0.98994601,105320.0,105310.0,0.047539]
[1737268392834,0.81892952,105320.0,105310.0,0.047539]
[1737268393341,0.769136,105320.0,105310.0,0.047539]
[1737268394040,0.94015249,105320.0,105310.0,0.047539]
[1737268396133,0.17101649,105320.0,105310.0,0.408339]
[1737268396334,0.408321,105350.0,105340.0,0.047525]
[1737268396637,0.3608,105350.0,105340.0,0.11496483]
[1737268398138,0.3608,105360.0,105350.0,0.047521]
[1737268398343,0.3608,105360.0,105350.0,0.11496083]
[1737268400736,0.3608,105360.0,105350.0,0.047521]
[1737268400936,0.408316,105360.0,105350.0,0.047521]
[1737268404739,0.047521,105350.0,105340.0,0.05612495]
[1737268405046,0.047525,105340.0,105330.0,0.080128]
[1737268405542,0.471325,105340.0,105330.0,0.080128]
[1737268406752,0.471325,105340.0,105330.0,0.14756783]
[1737268407844,0.471325,105340.0,105330.0,0.080128]
[1737268408145,0.49123983,105340.0,105310.0,0.0014241]
[1737268408454,0.408331,105330.0,105310.0,0.14859893]
[1737268408649,0.408331,105330.0,105310.0,0.15731656]
[1737268408843,0.3608,105320.0,105310.0,0.15731656]
[1737268409442,0.3608,105330.0,105320.0,0.047534]
[1737268409644,0.3608,105330.0,105320.0,0.11497383]
[1737268411140,0.110526,105340.0,105330.0,0.04753]
[1737268411345,0.471326,105340.0,105330.0,0.11496983]
[1737268411939,0.4238,105340.0,105330.0,0.11496983]
[1737268412143,0.0315,105340.0,105330.0,0.11496983]
[1737268412344,0.0315,105340.0,105330.0,0.14576983]
[1737268413854,0.3923,105340.0,105330.0,0.14576983]
[1737268415046,0.0315,105340.0,105330.0,0.14576983]
[1737268416152,0.3608,105350.0,105340.0,0.047525]
[1737268416450,0.3608,105350.0,105340.0,0.11496483]
[1737268416651,0.3608,105350.0,105340.0,0.14676483]
[1737268417855,0.408321,105350.0,105340.0,0.14676483]
[1737268419549,0.3608,105350.0,105340.0,0.14676483]
[1737268420159,0.504318,105360.0,105350.0,0.047521]
[1737268420363,0.865118,105360.0,105350.0,0.047521]
[1737268421957,1.03528372,105360.0,105350.0,0.047521]
[1737268423067,1.007199,105360.0,105350.0,0.047521]
[1737268423852,1.07463883,105360.0,105350.0,0.047521]
[1737268425155,0.047521,105350.0,105340.0,0.079324]
[1737268425362,0.408321,105350.0,105340.0,0.079324]
[1737268426964,0.72056772,105350.0,105340.0,0.079324]
[1737268430170,0.57848672,105350.0,105340.0,0.079324]
[1737268432155,0.72082815,105350.0,105340.0,0.079324]
[1737268433267,0.36002815,105350.0,105340.0,0.079324]
[1737268433468,0.72082815,105350.0,105340.0,0.079324]
[1737268436967,0.047525,105340.0,105330.0,0.28197581]
[1737268437161,0.473525,105340.0,105330.0,0.28197581]
[1737268438173,0.61586643,105340.0,105330.0,0.05637135]
[1737268438466,0.63578126,105340.0,105320.0,0.54061004]
[1737268438666,0.40833,105330.0,105320.0,0.60002738]
[1737268438967,0.40833,105330.0,105320.0,0.66746768]
[1737268439770,0.40833,105330.0,105320.0,0.3854621]
[1737268439771,0.04753,105330.0,105320.0,0.3854621]
[1737268440969,0.04753,105330.0,105320.0,0.38546198]
[1737268441168,0.04753,105330.0,105320.0,0.31802215]
[1737268441364,0.40833,105330.0,105320.0,0.31802215]
[1737268441559,0.40833,105330.0,105320.0,0.31802262]
[1737268442361,0.40833,105330.0,105320.0,0.30613646]
[1737268443071,0.55067143,105330.0,105320.0,0.30613646]
[1737268443272,0.55067143,105330.0,105320.0,0.25860446]
[1737268443460,0.61811126,105330.0,105320.0,0.22560446]
[1737268443663,0.55067143,105330.0,105320.0,0.22560446]
[1737268443873,0.55067143,105330.0,105320.0,0.34057829]
[1737268444078,0.55067143,105330.0,105320.0,0.37067829]
[1737268444671,0.18987143,105330.0,105320.0,0.37067829]
[1737268445367,0.18987143,105330.0,105320.0,0.14507383]
[1737268446467,0.14234143,105330.0,105320.0,0.14507383]
[1737268447977,0.78603315,105340.0,105330.0,0.04753]
[1737268457377,0.64369172,105340.0,105330.0,0.04753]
[1737268458772,0.53096572,105340.0,105330.0,0.11496983]
[1737268459078,0.17016572,105340.0,105330.0,0.11496983]
[1737268459279,0.17016572,105340.0,105330.0,0.50676983]
[1737268459481,0.17016572,105340.0,105330.0,0.14596983]
[1737268460181,0.14240072,105340.0,105330.0,0.37157429]
[1737268460576,0.14240072,105340.0,105330.0,0.38345907]
[1737268461273,0.67336644,105350.0,105340.0,0.047525]
[1737268461477,0.67336644,105350.0,105340.0,0.14796483]
[1737268462282,0.72088744,105350.0,105340.0,0.080525]
[1737268462576,0.047525,105340.0,105330.0,0.27313346]
[1737268462786,0.472025,105340.0,105330.0,0.34057329]
[1737268463382,0.61442572,105340.0,105330.0,0.11496883]
[1737268465577,0.61442572,105340.0,105330.0,0.12685428]
[1737268466782,0.61442572,105340.0,105330.0,0.11496883]
[1737268469372,0.61442572,105340.0,105330.0,0.12685425]
[1737268471182,0.61442572,105340.0,105330.0,0.12685453]
[1737268473585,0.62349567,105340.0,105330.0,0.12685435]
[1737268473882,0.62349567,105340.0,105330.0,0.35245881]
[1737268474481,0.62349567,105340.0,105330.0,0.34057329]
[1737268474879,0.62349567,105340.0,105330.0,0.27313346]
[1737268475072,0.62349567,105340.0,105330.0,0.34057329]
[1737268475478,0.61442572,105340.0,105330.0,0.28433363]
[1737268475683,0.61442572,105340.0,105330.0,0.29621893]
[1737268476878,0.61442572,105340.0,105330.0,0.52182339]
[1737268478291,0.53650072,105340.0,105330.0,0.52182339]
[1737268478679,0.53650072,105340.0,105330.0,0.55432339]
[1737268478984,0.53650072,105340.0,105330.0,0.55432309]
[1737268479384,0.17570072,105340.0,105330.0,0.55432309]
[1737268479688,0.53650072,105340.0,105330.0,0.38495829]
[1737268480689,0.53650072,105340.0,105330.0,0.38495858]
[1737268481281,0.3941,105340.0,105330.0,0.36727415]
[1737268481685,0.3941,105340.0,105330.0,0.41702949]
[1737268481886,0.0333,105340.0,105330.0,0.41702949]
[1737268482595,0.17570072,105340.0,105330.0,0.36727415]
[1737268484093,0.3941,105340.0,105330.0,0.31751881]
[1737268484388,0.3941,105340.0,105330.0,0.3553888]
[1737268484591,0.3941,105340.0,105330.0,0.36727415]
[1737268484979,0.0333,105340.0,105330.0,0.36727415]
[1737268485391,0.17570072,105340.0,105330.0,0.38491724]
[1737268486283,0.0333,105340.0,105330.0,0.38491724]
[1737268487994,0.17570072,105340.0,105330.0,0.38491724]
[1737268488189,0.17570072,105340.0,105330.0,0.38491669]
[1737268488787,0.17570072,105340.0,105330.0,0.38491702]
[1737268489194,0.58402572,105340.0,105330.0,0.38491702]
[1737268490200,0.58402572,105340.0,105330.0,0.55454132]
[1737268491594,0.22322572,105340.0,105330.0,0.55454132]
[1737268491797,0.22322572,105340.0,105330.0,0.48714289]
[1737268491996,0.22322572,105340.0,105330.0,0.48714222]
[1737268492296,0.22322572,105340.0,105330.0,0.55454065]
[1737268492597,0.22322572,105340.0,105330.0,0.38491672]
[1737268492998,0.17570072,105340.0,105330.0,0.38491672]
[1737268493901,0.17570072,105340.0,105330.0,0.38491668]
[1737268494596,0.14240072,105340.0,105330.0,0.76473224]
[1737268495696,0.14240072,105340.0,105330.0,0.76473079]
[1737268496091,0.14240072,105340.0,105330.0,0.69733236]
[1737268496298,0.55072172,105350.0,105330.0,1.04710582]
[1737268496499,0.0631,105340.0,105330.0,1.04710582]
[1737268497200,0.0631,105340.0,105330.0,0.68630582]
[1737268497401,0.0631,105340.0,105330.0,0.66729092]
[1737268497796,0.4239,105340.0,105330.0,0.66729092]
[1737268498002,0.471425,105340.0,105330.0,0.66729092]
[1737268498898,0.471425,105340.0,105330.0,0.65540661]
[1737268499101,0.61382572,105340.0,105330.0,0.44321035]
[1737268499798,0.71142415,105340.0,105330.0,0.40756677]
[1737268500298,0.71142415,105340.0,105330.0,0.39568135]
[1737268502195,0.56902343,105340.0,105330.0,0.16957772]
[1737268503097,0.73918915,105340.0,105330.0,0.16957772]
[1737268504704,0.73918915,105340.0,105320.0,0.60012398]
[1737268504902,0.3608,105330.0,105320.0,0.56447816]
[1737268505293,0.408329,105330.0,105320.0,0.54685298]
[1737268505697,0.45810225,105330.0,105320.0,0.48809753]
[1737268505902,0.60054287,105330.0,105320.0,0.39568135]
[1737268507505,0.60054287,105330.0,105320.0,0.16957772]
[1737268508507,0.047534,105320.0,105310.0,0.17102898]
[1737268508703,0.52350725,105320.0,105310.0,0.16960488]
[1737268509006,0.55480725,105320.0,105310.0,0.16960488]
[1737268509504,0.57248484,105320.0,105310.0,0.16960488]
[1737268509903,0.71485785,105320.0,105300.0,0.30614563]
[1737268510109,0.47578884,105310.0,105300.0,0.23799213]
[1737268510299,0.47578884,105310.0,105300.0,0.22610363]
[1737268511208,0.47578884,105310.0,105290.0,0.30535063]
[1737268511209,0.57062385,105310.0,105290.0,0.30535063]
[1737268511509,0.472143,105300.0,105290.0,0.30535063]
[1737268512510,0.472143,105300.0,105290.0,0.25780363]
[1737268512807,0.472143,105300.0,105290.0,0.0317]
[1737268515595,0.48143895,105300.0,105290.0,0.0317]
[1737268517414,0.54888979,105300.0,105280.0,0.558431]
[1737268517601,0.408348,105290.0,105280.0,0.558431]
[1737268518103,0.047548,105290.0,105280.0,0.62588184]
[1737268518608,0.047548,105290.0,105280.0,0.63777219]
[1737268518809,0.408348,105290.0,105280.0,0.63777219]
[1737268519009,0.047548,105290.0,105280.0,0.63777219]
[1737268519212,0.047548,105290.0,105280.0,0.62588184]
[1737268519808,0.408348,105290.0,105280.0,0.62588184]
[1737268520113,0.047548,105290.0,105280.0,0.62588184]
[1737268520303,0.408348,105290.0,105280.0,0.62588184]
[1737268520511,0.047548,105290.0,105280.0,0.62588184]
[1737268520814,0.047552,105280.0,105270.0,0.27517997]
[1737268521108,0.408352,105280.0,105270.0,0.08107634]
[1737268525311,0.440152,105280.0,105270.0,0.08107634]
[1737268525615,0.408352,105280.0,105270.0,0.14852718]
[1737268525809,0.3608,105290.0,105280.0,0.047552]
[1737268525810,0.408348,105290.0,105280.0,0.047552]
[1737268526003,0.408348,105290.0,105280.0,0.14560284]
[1737268526204,0.3608,105290.0,105280.0,0.14560284]
[1737268526403,0.44983995,105300.0,105280.0,0.14560284]
[1737268526613,0.44983995,105300.0,105290.0,0.0317]
[1737268527412,0.440544,105300.0,105290.0,0.0317]
[1737268529011,0.440544,105300.0,105290.0,0.079248]
[1737268530408,0.50799484,105300.0,105290.0,0.079248]
[1737268530610,0.50799484,105300.0,105290.0,0.0317]
[1737268530817,0.54069484,105300.0,105290.0,0.0317]
[1737268531917,0.54069484,105300.0,105270.0,0.27517997]
[1737268531918,0.047552,105280.0,105270.0,0.27517997]
[1737268532219,0.408352,105280.0,105270.0,0.30617997]
[1737268532714,0.408352,105280.0,105270.0,0.37363081]
[1737268533313,0.408352,105280.0,105270.0,0.14752718]
[1737268533519,0.408352,105280.0,105270.0,0.08007634]
[1737268535312,0.408352,105280.0,105270.0,0.09196842]
[1737268536912,0.408352,105280.0,105270.0,0.08007634]
[1737268537109,0.408352,105280.0,105270.0,0.09196847]
[1737268538525,0.408352,105280.0,105270.0,0.14752718]
[1737268539022,0.408352,105280.0,105270.0,0.08007634]
[1737268541418,0.408352,105280.0,105270.0,0.09196837]
[1737268542011,0.408352,105280.0,105270.0,0.318072]
[1737268542707,0.408352,105280.0,105270.0,0.31807204]
[1737268543310,0.408352,105280.0,105270.0,0.36789321]
[1737268548823,0.408352,105280.0,105270.0,0.36789317]
[1737268552225,0.439452,105280.0,105270.0,0.36789317]
[1737268559127,0.14237301,105280.0,105270.0,0.41771434]
[1737268559331,0.14237301,105280.0,105270.0,0.43673991]
[1737268560134,0.50317301,105280.0,105270.0,0.43673991]
[1737268560329,0.3608,105280.0,105270.0,0.82610373]
[1737268560732,0.55072201,105290.0,105280.0,0.047551]
[1737268560932,0.55072201,105290.0,105280.0,0.1092642]
[1737268561132,0.55072201,105290.0,105280.0,0.10926318]
[1737268561631,0.55072201,105290.0,105280.0,0.33615719]
[1737268561832,0.14237301,105290.0,105280.0,0.36925719]
[1737268562737,0.14237301,105290.0,105280.0,0.98413293]
[1737268563922,0.64200972,105300.0,105280.0,0.70968792]
[1737268563923,0.78438273,105300.0,105280.0,0.70968792]
[1737268564130,0.78438273,105300.0,105290.0,0.13046817]
[1737268565429,0.61421701,105300.0,105290.0,0.35716073]
[1737268565638,0.58151701,105300.0,105290.0,0.35716073]
[1737268566037,0.58151701,105300.0,105290.0,0.36905087]
[1737268566242,0.58151701,105300.0,105290.0,0.35716073]
[1737268567246,0.53397301,105300.0,105290.0,0.35716073]
[1737268567451,0.14237301,105300.0,105290.0,0.72984994]
[1737268567749,0.31253873,105310.0,105290.0,0.72984994]
[1737268568046,0.31253873,105310.0,105300.0,0.14718434]
[1737268568447,0.31253873,105310.0,105300.0,0.53888434]
[1737268568648,0.31253873,105310.0,105300.0,0.55077208]
[1737268569343,0.472236,105320.0,105300.0,0.77746464]
[1737268569644,0.4247,105320.0,105310.0,0.12795917]
[1737268569849,0.73004439,105330.0,105310.0,0.12795917]
[1737268570049,0.67333873,105330.0,105320.0,0.09735417]
[1737268570246,0.31253873,105330.0,105320.0,0.45815417]
[1737268570451,0.31253873,105330.0,105320.0,0.50093986]
[1737268570954,0.14237301,105330.0,105320.0,0.50093986]
[1737268571255,0.14237301,105330.0,105320.0,0.48905417]
[1737268571458,0.14237301,105330.0,105320.0,0.12825417]
[1737268571949,0.25169701,105340.0,105330.0,0.047529]
[1737268572150,0.61249701,105340.0,105330.0,0.09735017]
[1737268572350,0.61249701,105340.0,105330.0,0.13005017]
[1737268572554,0.25169701,105340.0,105330.0,0.13005017]
[1737268573055,0.109324,105340.0,105330.0,0.13005017]
[1737268573448,0.109324,105340.0,105330.0,0.14762955]
[1737268574746,0.0313,105340.0,105330.0,0.14762955]
[1737268575257,0.0313,105340.0,105330.0,0.50842955]
[1737268575844,0.408321,105350.0,105340.0,0.047524]
[1737268576049,0.408321,105350.0,105340.0,0.11492455]
[1737268576050,0.3608,105350.0,105340.0,0.11492455]
[1737268580853,0.47973625,105360.0,105340.0,0.47572455]
[1737268581053,0.47973625,105360.0,105350.0,0.06740055]
[1737268582458,0.47973625,105360.0,105350.0,0.11492055]
[1737268584056,0.11893625,105360.0,105350.0,0.11492055]
[1737268584850,0.47973625,105360.0,105350.0,0.11492055]
[1737268585056,0.11893625,105360.0,105350.0,0.11492055]
[1737268585253,0.47973625,105360.0,105350.0,0.11492055]
[1737268585461,0.11893625,105360.0,105350.0,0.11492055]
[1737268587156,0.47973625,105360.0,105350.0,0.11492055]
[1737268587961,0.11893625,105360.0,105350.0,0.11492055]
[1737268589663,0.47973625,105360.0,105350.0,0.11492055]
[1737268589864,0.11893625,105360.0,105350.0,0.11492055]
[1737268591861,0.47973625,105360.0,105350.0,0.11492055]
[1737268592366,0.11893625,105360.0,105350.0,0.11492055]
[1737268593469,0.11893625,105360.0,105350.0,0.09726041]
[1737268593767,0.16237301,105380.0,105370.0,0.047511]
[1737268593972,0.16237301,105380.0,105370.0,0.09725141]
[1737268594369,0.16237301,105380.0,105370.0,0.14699182]
[1737268594569,0.16237301,105380.0,105370.0,0.09725141]
[1737268595169,0.16237301,105380.0,105370.0,0.10913124]
[1737268595473,0.02,105380.0,105370.0,0.11483403]
[1737268598173,0.02,105380.0,105370.0,0.12671365]
[1737268598669,0.02,105380.0,105370.0,0.48751365]
[1737268598973,0.02,105380.0,105370.0,0.12671365]
[1737268599168,0.02,105380.0,105370.0,0.48751365]
[1737268600374,0.02,105380.0,105370.0,0.4875134]
[1737268600567,0.02,105380.0,105370.0,0.1267134]
[1737268602275,0.02,105380.0,105370.0,0.12671367]
[1737268603168,0.02,105380.0,105370.0,0.12671376]
[1737268603776,0.02,105380.0,105370.0,0.11483403]
[1737268604075,0.02,105380.0,105370.0,0.12671373]
[1737268606278,0.047511,105370.0,105360.0,0.30470756]
[1737268606468,0.53983403,105370.0,105360.0,0.22669256]
[1737268607068,0.472511,105370.0,105360.0,0.22669256]
[1737268607269,0.472511,105370.0,105360.0,0.27420756]
[1737268607577,0.472511,105370.0,105360.0,0.047515]
[1737268609678,0.472511,105370.0,105360.0,0.11483803]
[1737268610676,0.472511,105370.0,105360.0,0.047515]
[1737268611378,0.472511,105370.0,105360.0,0.11483803]
[1737268612180,0.472511,105370.0,105360.0,0.047515]
[1737268613379,0.61488401,105370.0,105360.0,0.079815]
[1737268616179,0.472511,105370.0,105360.0,0.079815]
[1737268619081,0.440411,105370.0,105360.0,0.079815]
[1737268619282,0.440411,105370.0,105360.0,0.110115]
[1737268623589,0.3929,105370.0,105360.0,0.17743803]
[1737268623791,0.3608,105370.0,105360.0,0.17743803]
[1737268623985,0.58014513,105380.0,105360.0,0.12992303]
[1737268624184,0.58014513,105380.0,105370.0,0.047511]
[1737268626787,0.58014513,105380.0,105370.0,0.11483403]
[1737268628289,0.57068001,105380.0,105370.0,0.11483403]
[1737268628690,0.57068001,105380.0,105370.0,0.047511]
[1737268629594,0.52317301,105380.0,105370.0,0.11483403]
[1737268630194,0.52317301,105380.0,105370.0,0.12671467]
[1737268630790,0.52317301,105380.0,105370.0,0.15871467]
[1737268631897,0.3808,105380.0,105370.0,0.32827818]
[1737268632092,0.31253873,105390.0,105370.0,0.96076372]
[1737268632298,0.1,105400.0,105390.0,0.047502]
[1737268632593,0.21482003,105400.0,105390.0,0.09838705]
[1737268632894,0.179397,105400.0,105390.0,0.07938264]
[1737268633088,0.179397,105400.0,105390.0,0.07938082]
[1737268633290,0.179397,105400.0,105390.0,0.12908984]
[1737268633792,0.179397,105400.0,105390.0,0.48988984]
[1737268634095,0.1,105400.0,105390.0,0.48988984]
[1737268635189,0.1,105400.0,105390.0,0.65929596]
[1737268635395,0.1,105400.0,105390.0,0.64088709]
[1737268635585,0.57561486,105400.0,105390.0,0.18940612]
[1737268635787,0.24581486,105400.0,105390.0,0.18940612]
[1737268636195,0.24581486,105400.0,105390.0,0.02]
[1737268636498,0.60661486,105400.0,105390.0,0.02]
[1737268636689,0.047502,105390.0,105380.0,0.16940612]
[1737268636995,0.17721986,105390.0,105380.0,0.16940612]
[1737268637695,0.17721986,105390.0,105370.0,0.80440868]
[1737268637888,0.047506,105380.0,105370.0,0.76877895]
[1737268638088,0.079106,105380.0,105370.0,0.76877895]
[1737268638397,0.079106,105380.0,105370.0,0.54208639]
[1737268638797,0.079106,105380.0,105370.0,0.58959739]
[1737268639294,0.079106,105380.0,105370.0,0.5895974]
[1737268640190,0.14642386,105380.0,105370.0,0.1812864]
[1737268641195,0.14642386,105380.0,105370.0,0.18128656]
[1737268642885,0.079106,105380.0,105370.0,0.54208656]
[1737268643683,0.109903,105390.0,105370.0,0.65691542]
[1737268643896,0.078403,105390.0,105380.0,0.408306]
[1737268644296,0.078403,105390.0,105380.0,0.42018549]
[1737268644898,0.078403,105390.0,105380.0,0.408306]
[1737268645200,0.078403,105390.0,105380.0,0.42018539]
[1737268645587,0.047503,105390.0,105380.0,0.42018534]
[1737268645790,0.047503,105390.0,105380.0,0.62229146]
[1737268646889,0.047503,105390.0,105380.0,0.6222914]
[1737268647091,0.047503,105390.0,105380.0,0.68960926]
[1737268648308,0.047503,105390.0,105380.0,0.6222914]
[1737268648794,0.11482086,105390.0,105380.0,0.18128524]
[1737268649000,0.11482086,105390.0,105380.0,0.16940612]
[1737268649598,0.47562086,105390.0,105380.0,0.16940612]
[1737268650892,0.047506,105380.0,105370.0,0.16940612]
[1737268651196,0.111106,105380.0,105370.0,0.18128663]
[1737268651699,0.17842386,105380.0,105370.0,0.18128663]
[1737268651890,0.21162386,105380.0,105370.0,0.18128663]
[1737268653197,0.21162386,105380.0,105370.0,0.18128676]
[1737268653695,0.144306,105380.0,105370.0,0.18128676]
[1737268654595,0.144306,105380.0,105370.0,0.18128681]
[1737268658302,0.144306,105380.0,105370.0,0.18128669]
[1737268659800,0.144306,105380.0,105370.0,0.40797925]
[1737268659999,0.111106,105380.0,105370.0,0.52280811]
[1737268660194,0.047502,105390.0,105380.0,0.047506]
[1737268660501,0.047502,105390.0,105380.0,0.60071333]
[1737268660903,0.047502,105390.0,105380.0,0.60070722]
[1737268661301,0.147498,105400.0,105390.0,0.047501]
[1737268661605,0.147498,105400.0,105390.0,0.42017921]
[1737268662199,0.147498,105400.0,105390.0,0.42017919]
[1737268663004,0.147498,105400.0,105390.0,0.42017519]
[1737268663913,0.147498,105400.0,105390.0,0.58968396]
[1737268665810,0.147498,105400.0,105390.0,0.58968385]
[1737268666205,0.147498,105400.0,105390.0,0.65700171]
[1737268666604,0.1,105400.0,105390.0,0.60868793]
[1737268667202,0.1,105400.0,105390.0,0.67600579]
[1737268667725,0.1,105400.0,105390.0,0.6760047]
[1737268668014,0.1,105400.0,105390.0,0.9020164]
[1737268669212,0.1,105400.0,105390.0,0.88301266]
[1737268669711,0.1,105400.0,105390.0,0.9020164]
[1737268672811,0.1,105400.0,105390.0,0.73250763]
[1737268675722,0.1,105400.0,105390.0,0.90167058]
[1737268677511,0.1,105400.0,105390.0,0.90166857]
[1737268678917,0.1,105400.0,105390.0,0.73250562]
[1737268679116,0.25463422,105430.0,105410.0,0.047489]
[1737268679312,0.22203422,105430.0,105420.0,0.42811786]
[1737268679520,0.18973422,105430.0,105420.0,0.50740186]
[1737268679711,0.14225422,105430.0,105420.0,0.54060186]
[1737268680018,0.18973422,105430.0,105420.0,0.54060186]
[1737268680207,0.04748,105430.0,105420.0,0.54060186]
[1737268680912,0.04748,105430.0,105420.0,0.473284]
[1737268681115,0.04748,105430.0,105420.0,0.55247619]
[1737268681706,0.04748,105430.0,105420.0,0.54060186]
[1737268681923,0.18973122,105440.0,105430.0,0.04748]
[1737268682111,0.18973122,105440.0,105430.0,0.47559786]
[1737268682422,0.17070506,105450.0,105440.0,0.047475]
[1737268682611,0.17070506,105450.0,105440.0,0.48746685]
[1737268682917,0.21817306,105460.0,105440.0,0.48746433]
[1737268683118,0.21817306,105460.0,105450.0,0.3916]
[1737268684322,0.11478586,105460.0,105440.0,0.3608]
[1737268684523,0.04747,105450.0,105440.0,0.3726715]
[1737268684907,0.04747,105450.0,105440.0,0.3608]
[1737268687918,0.07867,105450.0,105440.0,0.3608]
[1737268689014,0.14598786,105450.0,105440.0,0.3608]
[1737268689218,0.047475,105440.0,105420.0,0.78743133]
[1737268689428,0.047479,105430.0,105420.0,0.79930493]
[1737268689927,0.047479,105430.0,105420.0,0.7993052]
[1737268690522,0.047479,105430.0,105420.0,0.86662306]
[1737268690728,0.0628,105440.0,105430.0,0.047478]
[1737268690729,0.047476,105440.0,105430.0,0.047478]
[1737268690914,0.41780636,105470.0,105430.0,0.56826566]
[1737268690915,0.047472,105450.0,105430.0,0.56826566]
[1737268691119,0.047472,105450.0,105440.0,0.42811786]
[1737268691323,0.047472,105450.0,105440.0,0.47309173]
[1737268692128,0.047472,105450.0,105440.0,0.52056673]
[1737268692830,0.047472,105450.0,105440.0,0.50869286]
[1737268694529,0.047472,105450.0,105440.0,0.408275]
[1737268694530,0.11478986,105450.0,105440.0,0.408275]
[1737268694931,0.14638986,105450.0,105440.0,0.408275]
[1737268695226,0.079072,105450.0,105440.0,0.408275]
[1737268698126,0.079072,105450.0,105440.0,0.42014742]
[1737268699325,0.079072,105450.0,105440.0,0.42014728]
[1737268699919,0.14638986,105450.0,105440.0,0.37267228]
[1737268700123,0.079072,105450.0,105440.0,0.37267228]
[1737268700325,0.079072,105450.0,105440.0,0.42014728]
[1737268701037,0.079072,105450.0,105440.0,0.48746514]
[1737268701233,0.079072,105450.0,105440.0,0.48746504]
[1737268701735,0.079072,105450.0,105440.0,0.5064601]
[1737268702228,0.079072,105450.0,105440.0,0.42939301]
[1737268703234,0.079072,105450.0,105440.0,0.59841264]
[1737268703937,0.079072,105450.0,105440.0,0.58916681]
[1737268704128,0.079072,105450.0,105440.0,0.42014718]
[1737268704925,0.079072,105450.0,105440.0,0.42014725]
[1737268706032,0.047472,105450.0,105440.0,0.48746511]
[1737268706334,0.047472,105450.0,105440.0,0.51776511]
[1737268706836,0.047472,105450.0,105440.0,0.68678474]
[1737268707026,0.047472,105450.0,105440.0,0.70578026]
[1737268708427,0.047472,105450.0,105440.0,0.93179196]
[1737268709628,0.047472,105450.0,105440.0,0.76277233]
[1737268710029,0.047468,105460.0,105450.0,0.047471]
[1737268710227,0.047468,105460.0,105450.0,0.47173877]
[1737268710936,0.047468,105460.0,105450.0,0.6409194]
[1737268711136,0.047468,105460.0,105450.0,0.70823726]
[1737268711639,0.047468,105460.0,105450.0,0.6409194]
[1737268712433,0.047468,105460.0,105450.0,0.70823471]
[1737268712634,0.047468,105460.0,105450.0,0.93424641]